bitfinex/quotes_BTCUSD_20250324
["timestamp","ask_amount","ask_price","bid_price","bid_amount"]
[1742840824691,2.5e-07,88347.0,88346.0,0.68707764]
[1742840824910,2.5e-07,88347.0,88346.0,0.69556271]
[1742840825517,2.5e-07,88347.0,88346.0,0.82472271]
[1742840825962,2.5e-07,88347.0,88346.0,1.36312271]
[1742840826268,2.5e-07,88347.0,88346.0,1.77172271]
[1742840827101,2.5e-07,88347.0,88346.0,1.64256271]
[1742840827305,2.5e-07,88347.0,88346.0,1.77172271]
[1742840829318,2.5e-07,88347.0,88346.0,1.78626356]
[1742840830329,2.5e-07,88347.0,88346.0,1.78026356]
[1742840830606,2.5e-07,88347.0,88346.0,1.78126356]
[1742840830801,2.5e-07,88347.0,88346.0,1.78626356]
[1742840831044,2.5e-07,88347.0,88346.0,1.78126356]
[1742840831261,2.5e-07,88347.0,88346.0,1.77526356]
[1742840831662,2.5e-07,88347.0,88346.0,1.65210356]
[1742840831862,2.5e-07,88347.0,88346.0,1.78122356]
[1742840832159,0.0751,88379.0,88378.0,0.2263]
[1742840832375,0.0751,88379.0,88378.0,0.46967764]
[1742840832577,0.07980531,88379.0,88378.0,0.46967764]
[1742840832741,0.0751,88379.0,88378.0,0.46967764]
[1742840833788,0.0751,88379.0,88378.0,0.48099264]
[1742840833990,0.125,88383.0,88382.0,0.22629]
[1742840834193,0.125,88383.0,88382.0,0.34054764]
[1742840837804,0.125,88383.0,88382.0,0.34154764]
[1742840838357,0.125,88383.0,88382.0,0.48198164]
[1742840838556,0.0495,88383.0,88382.0,0.48198164]
[1742840843454,0.0498396,88383.0,88382.0,0.48198164]
[1742840844071,0.0003396,88383.0,88382.0,0.48198164]
[1742840846255,0.0003396,88383.0,88382.0,0.48098164]
[1742840846456,0.0003396,88383.0,88382.0,0.48198164]
[1742840846861,0.0003396,88383.0,88382.0,0.48098164]
[1742840847065,0.0003396,88383.0,88382.0,0.48598164]
[1742840847560,0.0003396,88383.0,88382.0,0.48498164]
[1742840847860,0.0003396,88383.0,88382.0,0.49098164]
[1742840848594,0.0003396,88383.0,88382.0,0.36186164]
[1742840848792,0.0003396,88383.0,88382.0,0.49094164]
[1742840849729,0.0003396,88383.0,88382.0,0.89954139]
[1742840850286,0.0003396,88383.0,88382.0,0.88954139]
[1742840850488,0.0003396,88383.0,88382.0,0.89254139]
[1742840850639,0.0003396,88383.0,88382.0,0.89454139]
[1742840850977,0.0003396,88383.0,88382.0,0.89154139]
[1742840852112,0.0003396,88383.0,88382.0,0.89454139]
[1742840852295,0.0003396,88383.0,88382.0,0.89254139]
[1742840852689,0.0003396,88383.0,88382.0,0.89154139]
[1742840852898,0.0003396,88383.0,88382.0,0.89454139]
[1742840853470,0.0003396,88383.0,88382.0,0.88954139]
[1742840853727,0.0003396,88383.0,88382.0,0.89354139]
[1742840854528,0.0003396,88383.0,88382.0,0.89654139]
[1742840855082,0.0003396,88383.0,88382.0,0.89254139]
[1742840855432,0.0003396,88383.0,88382.0,0.89654139]
[1742840866013,0.0003396,88383.0,88382.0,1.43474139]
[1742840868014,0.0003396,88383.0,88382.0,1.73474139]
[1742840868212,6e-07,88383.0,88382.0,1.89395032]
[1742840870356,6e-07,88383.0,88382.0,1.71667032]
[1742840870572,6e-07,88383.0,88382.0,1.42334739]
[1742840870743,6e-07,88383.0,88382.0,1.43466139]
[1742840872891,6e-07,88383.0,88382.0,1.19705739]
[1742840873094,6e-07,88383.0,88382.0,1.01474764]
[1742840873095,0.0774006,88383.0,88382.0,1.01474764]
[1742840874632,0.0774006,88383.0,88382.0,0.88574764]
[1742840874836,0.0774006,88383.0,88382.0,1.01474764]
[1742840875988,0.0774006,88383.0,88382.0,1.01224764]
[1742840876898,0.0774006,88383.0,88382.0,0.88324764]
[1742840877068,0.0774006,88383.0,88382.0,1.01224764]
[1742840880348,0.0774006,88383.0,88382.0,0.88324764]
[1742840880554,0.0774006,88383.0,88382.0,1.01224764]
[1742840880730,0.0774006,88383.0,88382.0,1.02356164]
[1742840881049,6e-07,88383.0,88382.0,1.02356164]
[1742840881373,6e-07,88383.0,88382.0,1.01224764]
[1742840882391,6e-07,88383.0,88382.0,1.02356164]
[1742840882592,6e-07,88383.0,88382.0,1.01224764]
[1742840883367,6e-07,88383.0,88382.0,1.02356164]
[1742840883774,6e-07,88383.0,88382.0,1.01224764]
[1742840885815,6e-07,88383.0,88382.0,1.02356164]
[1742840886779,6e-07,88383.0,88382.0,1.01224764]
[1742840887555,6e-07,88383.0,88382.0,1.02356164]
[1742840888549,6e-07,88383.0,88382.0,1.01224764]
[1742840890137,6e-07,88383.0,88382.0,0.47421744]
[1742840893591,6e-07,88383.0,88382.0,0.48553144]
[1742840893797,6e-07,88383.0,88382.0,0.47421744]
[1742840898804,6e-07,88383.0,88382.0,0.48553144]
[1742840901142,6e-07,88383.0,88382.0,0.50814882]
[1742840903183,6e-07,88383.0,88382.0,0.48553144]
[1742840912225,6e-07,88383.0,88382.0,0.94798859]
[1742840912573,6e-07,88383.0,88382.0,0.96918197]
[1742840913180,6e-07,88383.0,88382.0,0.96218197]
[1742840913550,6e-07,88383.0,88382.0,0.97218197]
[1742840913862,6e-07,88383.0,88382.0,0.95098859]
[1742840914467,6e-07,88383.0,88382.0,0.82198859]
[1742840914669,6e-07,88383.0,88382.0,0.95090859]
[1742840916388,6e-07,88383.0,88382.0,1.05238238]
[1742840920412,6e-07,88383.0,88382.0,0.95090859]
[1742840927390,6e-07,88383.0,88382.0,0.96544944]
[1742840930027,6e-07,88391.0,88390.0,0.537582]
[1742840930222,6e-07,88391.0,88390.0,0.93693764]
[1742840931502,6e-07,88391.0,88390.0,0.94146764]
[1742840931737,6e-07,88391.0,88390.0,0.94446764]
[1742840931969,6e-07,88391.0,88390.0,0.94146764]
[1742840932427,6e-07,88391.0,88390.0,1.02326764]
[1742840932638,6e-07,88391.0,88390.0,1.02926764]
[1742840933244,6e-07,88391.0,88390.0,1.47504679]
[1742840933460,6e-07,88391.0,88390.0,1.47051679]
[1742840933840,6e-07,88391.0,88390.0,1.59935679]
[1742840934052,6e-07,88391.0,88390.0,1.56399964]
[1742840936355,6e-07,88391.0,88390.0,1.43515964]
[1742840936560,6e-07,88391.0,88390.0,1.26399964]
[1742840936561,0.0771006,88391.0,88390.0,1.26399964]
[1742840937212,0.1309006,88391.0,88390.0,0.89757764]
[1742840937440,0.1309006,88391.0,88390.0,1.25268664]
[1742840938476,0.1309006,88391.0,88390.0,1.24868664]
[1742840938677,0.1309006,88391.0,88390.0,1.24268664]
[1742840938832,0.1309006,88391.0,88390.0,1.24468664]
[1742840939039,0.1309006,88391.0,88390.0,1.24768664]
[1742840940394,0.1309006,88391.0,88390.0,1.11884664]
[1742840940548,0.1309006,88391.0,88390.0,1.24768664]
[1742840941582,0.1309006,88391.0,88390.0,1.11884664]
[1742840941786,0.1309006,88391.0,88390.0,1.24768664]
[1742840943378,0.1559006,88391.0,88390.0,1.24768664]
[1742840944571,0.1559006,88391.0,88390.0,1.11684664]
[1742840944817,0.16719519,88391.0,88390.0,1.24268664]
[1742840945023,0.16719519,88391.0,88390.0,1.11484664]
[1742840945242,0.16719519,88391.0,88390.0,1.24568664]
[1742840945452,0.44638281,88391.0,88390.0,0.77632]
[1742840945669,0.40477519,88391.0,88390.0,0.77632]
[1742840945871,0.40477519,88391.0,88390.0,0.53912]
[1742840946693,0.40477519,88391.0,88390.0,0.53812]
[1742840946900,0.262601,88383.0,88382.0,0.0001698]
[1742840947101,0.388901,88383.0,88382.0,0.0001698]
[1742840948260,0.393901,88383.0,88382.0,0.0001698]
[1742840948462,0.1563,88383.0,88382.0,0.0001698]
[1742840949237,0.1563,88383.0,88355.0,0.10145322]
[1742840949238,0.03,88383.0,88355.0,0.10145322]
[1742840949446,0.1565,88365.0,88364.0,0.53828332]
[1742840952152,0.1565,88365.0,88364.0,0.54028332]
[1742840952694,0.1565,88365.0,88364.0,0.53828332]
[1742840953481,0.1565,88365.0,88364.0,0.65254096]
[1742840954213,0.005,88368.0,88364.0,0.65254096]
[1742840954424,0.025,88369.0,88365.0,0.11425764]
[1742840954631,0.025,88376.0,88365.0,0.11652074]
[1742840955137,0.025,88376.0,88365.0,0.12806091]
[1742840955343,0.1271,88385.0,88366.0,0.11425764]
[1742840955344,0.025,88378.0,88366.0,0.11425764]
[1742840955550,0.005,88381.0,88366.0,0.11425764]
[1742840955551,0.025,88374.0,88366.0,0.11425764]
[1742840956516,0.025,88374.0,88372.0,0.226316]
[1742840956718,0.025,88374.0,88373.0,0.46941064]
[1742840957403,0.03,88381.0,88380.0,0.226295]
[1742840957601,0.03,88381.0,88380.0,0.34055264]
[1742840964130,0.03,88381.0,88380.0,0.11425764]
[1742840964449,0.03,88381.0,88380.0,0.34055264]
[1742840965470,0.03,88381.0,88380.0,0.11425764]
[1742840965615,0.03,88381.0,88380.0,0.34055264]
[1742840966471,0.03,88381.0,88380.0,0.11425764]
[1742840966949,0.03,88381.0,88380.0,0.34055264]
[1742840967517,0.03,88381.0,88380.0,0.11425764]
[1742840967637,0.03,88381.0,88380.0,0.34055264]
[1742840968264,0.03,88381.0,88380.0,0.11425764]
[1742840968462,0.03,88381.0,88380.0,0.34055264]
[1742840968940,0.03,88381.0,88380.0,0.11425764]
[1742840969184,0.03,88381.0,88380.0,0.34055264]
[1742840974597,0.005,88381.0,88380.0,0.34055264]
[1742840974936,0.0303396,88382.0,88381.0,0.226292]
[1742840975139,0.0303396,88382.0,88381.0,0.34054964]
[1742840977337,0.0253396,88382.0,88381.0,0.34054964]
[1742840977545,0.0003396,88382.0,88381.0,0.35186364]
[1742840977762,0.0003396,88382.0,88381.0,0.43306364]
[1742840978007,0.0003396,88382.0,88381.0,0.84166364]
[1742840979469,0.0003396,88382.0,88381.0,0.84366364]
[1742840982799,0.0003396,88382.0,88381.0,0.89122364]
[1742840986394,0.0003396,88382.0,88381.0,0.75114964]
[1742840986395,0.0053396,88382.0,88381.0,0.75114964]
[1742840986594,0.0303396,88382.0,88381.0,0.87990964]
[1742840987432,0.0303396,88382.0,88381.0,0.47130964]
[1742840988897,0.0303396,88382.0,88381.0,0.24501764]
[1742840989104,0.0303396,88382.0,88381.0,0.47130964]
[1742840991096,0.0303396,88382.0,88381.0,0.46930964]
[1742840991404,0.0303396,88382.0,88381.0,0.47030964]
[1742840992381,0.35465506,88382.0,88381.0,0.001]
[1742840992623,0.2679436,88382.0,88381.0,0.001]
[1742840993488,0.3486436,88382.0,88381.0,0.001]
[1742840994148,0.237606,88381.0,88380.0,0.0001698]
[1742840994380,0.37475216,88381.0,88380.0,0.0001698]
[1742840995517,0.37975216,88381.0,88380.0,0.0001698]
[1742841003587,0.03,88381.0,88380.0,0.2264648]
[1742841003785,0.03,88381.0,88380.0,0.35203644]
[1742841003991,0.0003396,88382.0,88381.0,0.237606]
[1742841004237,0.0253396,88382.0,88381.0,0.48058364]
[1742841004444,0.0253396,88382.0,88381.0,0.46926964]
[1742841006441,0.0253396,88382.0,88381.0,0.24297764]
[1742841006442,0.2566296,88382.0,88381.0,0.24297764]
[1742841006844,0.0303396,88382.0,88381.0,0.24297764]
[1742841007061,0.242606,88381.0,88380.0,0.0001698]
[1742841007271,0.267606,88381.0,88380.0,0.1288898]
[1742841007954,0.267606,88381.0,88380.0,0.0001698]
[1742841008381,0.267606,88381.0,88380.0,0.0011698]
[1742841009671,0.267606,88381.0,88380.0,0.0001698]
[1742841009863,0.37280217,88381.0,88380.0,0.0001698]
[1742841014506,0.45160217,88381.0,88380.0,0.0001698]
[1742841015362,0.75160217,88381.0,88380.0,0.0001698]
[1742841020131,0.75360217,88381.0,88380.0,0.0001698]
[1742841021311,0.74428817,88381.0,88380.0,0.0001698]
[1742841021508,0.75560217,88381.0,88380.0,0.0001698]
[1742841021719,0.650406,88381.0,88380.0,0.0001698]
[1742841022151,0.66494685,88381.0,88380.0,0.0001698]
[1742841028211,0.571606,88381.0,88380.0,0.0001698]
[1742841028416,0.271606,88381.0,88380.0,0.0001698]
[1742841031196,0.38543217,88381.0,88380.0,0.0001698]
[1742841031957,0.271606,88381.0,88380.0,0.0001698]
[1742841033416,0.034,88381.0,88380.0,0.2264648]
[1742841033633,0.034,88381.0,88380.0,0.46940244]
[1742841034630,0.271606,88381.0,88380.0,0.1288498]
[1742841035082,0.269606,88381.0,88380.0,0.1288498]
[1742841035412,0.267606,88381.0,88380.0,0.1288498]
[1742841035659,0.269606,88381.0,88380.0,0.1288498]
[1742841035799,0.271606,88381.0,88380.0,0.1288498]
[1742841036246,0.33881327,88381.0,88380.0,0.0001698]
[1742841036667,0.271606,88381.0,88380.0,0.0001698]
[1742841037444,0.034,88381.0,88380.0,0.34072244]
[1742841037648,0.009,88381.0,88380.0,0.34072244]
[1742841037886,0.034,88381.0,88380.0,0.35203644]
[1742841038420,0.034,88381.0,88380.0,0.34072244]
[1742841038630,0.032,88381.0,88380.0,0.34072244]
[1742841038800,0.03,88381.0,88380.0,0.34072244]
[1742841038934,0.034,88381.0,88380.0,0.34072244]
[1742841039537,0.009,88381.0,88380.0,0.35203644]
[1742841039714,0.034,88381.0,88380.0,0.34072244]
[1742841039916,0.035,88381.0,88380.0,0.34072244]
[1742841041166,0.0353396,88381.0,88380.0,0.34072244]
[1742841041724,0.0103396,88381.0,88380.0,0.34072244]
[1742841041936,0.0353396,88381.0,88380.0,0.34072244]
[1742841042699,0.0343396,88381.0,88380.0,0.34072244]
[1742841043108,0.0013396,88381.0,88380.0,0.41726424]
[1742841043301,0.0013396,88381.0,88380.0,0.35203644]
[1742841043506,0.0023396,88381.0,88380.0,0.42943644]
[1742841043996,0.0023396,88381.0,88380.0,0.48791141]
[1742841044221,0.0013396,88381.0,88380.0,0.47653644]
[1742841044625,0.0003396,88381.0,88380.0,0.47753644]
[1742841045208,0.0003396,88381.0,88380.0,0.77753644]
[1742841045664,0.0003396,88381.0,88380.0,0.77953644]
[1742841046090,0.0003396,88381.0,88380.0,0.77753644]
[1742841046239,0.0003396,88381.0,88380.0,0.77653644]
[1742841046444,0.0003396,88381.0,88380.0,0.78153644]
[1742841046648,0.0003396,88381.0,88380.0,0.78253644]
[1742841046866,0.0003396,88381.0,88380.0,0.78153644]
[1742841047077,2e-07,88382.0,88381.0,0.537606]
[1742841047250,2e-07,88382.0,88381.0,0.77426364]
[1742841048325,2e-07,88382.0,88381.0,0.78266332]
[1742841048942,2e-07,88382.0,88381.0,0.78666332]
[1742841049416,2e-07,88382.0,88381.0,0.78966332]
[1742841055149,2e-07,88382.0,88381.0,0.73486364]
[1742841055477,2e-07,88382.0,88381.0,0.86346364]
[1742841055708,2e-07,88382.0,88381.0,0.73486364]
[1742841055915,2e-07,88382.0,88381.0,0.86346364]
[1742841056326,2e-07,88382.0,88381.0,0.56346364]
[1742841056889,2e-07,88382.0,88381.0,0.55946364]
[1742841057089,2e-07,88382.0,88381.0,0.55646364]
[1742841057297,2e-07,88382.0,88381.0,0.56046364]
[1742841057656,2e-07,88382.0,88381.0,0.92700449]
[1742841058811,2e-07,88382.0,88381.0,0.92000449]
[1742841059019,2e-07,88382.0,88381.0,0.92500449]
[1742841059971,2e-07,88382.0,88381.0,0.92000449]
[1742841060128,2e-07,88382.0,88381.0,0.93100449]
[1742841060537,2e-07,88382.0,88381.0,0.92500449]
[1742841060936,2e-07,88382.0,88381.0,0.93100449]
[1742841062784,2e-07,88382.0,88381.0,1.87409159]
[1742841063553,2e-07,88382.0,88381.0,1.90914856]
[1742841064357,2e-07,88382.0,88381.0,1.90314856]
[1742841064753,2e-07,88382.0,88381.0,1.90914856]
[1742841065717,2e-07,88382.0,88381.0,1.90414856]
[1742841065920,2e-07,88382.0,88381.0,1.91014856]
[1742841066238,2e-07,88382.0,88381.0,1.37662146]
[1742841066443,2e-07,88382.0,88381.0,1.34156449]
[1742841066648,2e-07,88382.0,88381.0,1.45558364]
[1742841067286,2e-07,88382.0,88381.0,1.44958364]
[1742841067694,2e-07,88382.0,88381.0,1.45558364]
[1742841068659,2e-07,88382.0,88381.0,1.10658364]
[1742841068862,2e-07,88382.0,88381.0,1.40658364]
[1742841069344,2e-07,88382.0,88381.0,1.32458364]
[1742841069521,2e-07,88382.0,88381.0,1.33058364]
[1742841072852,2e-07,88382.0,88381.0,1.32458364]
[1742841073028,2e-07,88382.0,88381.0,1.39181144]
[1742841073232,2e-07,88382.0,88381.0,1.32058364]
[1742841073601,2e-07,88382.0,88381.0,1.32558364]
[1742841074001,2e-07,88382.0,88381.0,1.32058364]
[1742841074401,2e-07,88382.0,88381.0,1.32458364]
[1742841075247,2e-07,88382.0,88381.0,1.72951074]
[1742841075465,2e-07,88382.0,88381.0,1.87272139]
[1742841075665,2e-07,88382.0,88381.0,1.90793014]
[1742841076122,2e-07,88382.0,88381.0,1.90393014]
[1742841076323,2e-07,88382.0,88381.0,1.90193014]
[1742841076528,2e-07,88382.0,88381.0,1.91193014]
[1742841077445,2e-07,88382.0,88381.0,1.50700304]
[1742841081438,2e-07,88382.0,88381.0,1.50688984]
[1742841081772,2e-07,88382.0,88381.0,1.65688984]
[1742841081983,4e-07,88408.0,88407.0,0.537537]
[1742841082186,4e-07,88408.0,88407.0,1.04992339]
[1742841083396,4.137e-05,88408.0,88407.0,1.05492339]
[1742841083718,9.7e-07,88409.0,88408.0,0.537534]
[1742841083879,9.7e-07,88409.0,88408.0,0.68700039]
[1742841085234,9.7e-07,88409.0,88408.0,0.68900039]
[1742841085440,9.7e-07,88409.0,88408.0,0.68700039]
[1742841085841,9.7e-07,88409.0,88408.0,0.69000039]
[1742841086374,9.7e-07,88409.0,88408.0,0.65479164]
[1742841086778,9.7e-07,88409.0,88408.0,0.65979164]
[1742841087087,9.7e-07,88409.0,88408.0,0.66825122]
[1742841087390,9.7e-07,88409.0,88408.0,1.20629122]
[1742841092323,9.7e-07,88409.0,88408.0,1.33477122]
[1742841097242,9.7e-07,88409.0,88408.0,1.20629122]
[1742841097465,9.7e-07,88409.0,88408.0,1.33477122]
[1742841097682,9.7e-07,88409.0,88408.0,1.02631164]
[1742841098602,9.7e-07,88409.0,88408.0,1.02648134]
[1742841102213,9.7e-07,88409.0,88404.0,0.011311]
[1742841102214,0.226272,88389.0,88381.0,0.0001698]
[1742841102422,0.226272,88389.0,88366.0,0.0001698]
[1742841102423,0.041314,88381.0,88366.0,0.0001698]
[1742841102640,0.341314,88381.0,88366.0,0.0001698]
[1742841102844,0.341314,88381.0,88366.0,0.2264998]
[1742841103282,0.341314,88381.0,88369.0,0.226321]
[1742841103432,0.341314,88381.0,88366.0,0.2264998]
[1742841103433,0.389614,88381.0,88367.0,0.226328]
[1742841103864,0.389614,88381.0,88368.0,0.226325]
[1742841104021,0.50387164,88381.0,88367.0,0.226328]
[1742841104227,0.50387164,88381.0,88367.0,0.226327]
[1742841105538,0.50587164,88381.0,88368.0,0.226325]
[1742841106094,0.50587164,88381.0,88367.0,0.226327]
[1742841106502,0.50887164,88381.0,88367.0,0.226327]
[1742841106731,0.50887164,88381.0,88368.0,0.226325]
[1742841106926,0.394614,88381.0,88370.0,0.22632]
[1742841107429,0.394614,88381.0,88368.0,0.226325]
[1742841107842,0.394614,88381.0,88369.0,0.226322]
[1742841108198,0.41760355,88381.0,88369.0,0.226322]
[1742841108985,0.41760355,88381.0,88368.0,0.12852]
[1742841109904,0.41760355,88381.0,88369.0,0.226323]
[1742841110131,0.41760355,88381.0,88368.0,0.12852]
[1742841112908,0.41760355,88381.0,88366.0,0.0001698]
[1742841112909,0.50070355,88381.0,88366.0,0.1286898]
[1742841113850,0.5152444,88381.0,88366.0,0.0001698]
[1742841114071,0.62750204,88381.0,88366.0,0.0001698]
[1742841114296,0.62450204,88381.0,88366.0,0.0001698]
[1742841114570,0.74175968,88381.0,88366.0,0.0001698]
[1742841114774,0.74275968,88381.0,88366.0,0.0001698]
[1742841115047,0.73875968,88381.0,88366.0,0.0001698]
[1742841115453,0.76875968,88381.0,88380.0,8e-07]
[1742841115803,0.77713645,88381.0,88380.0,8e-07]
[1742841117138,0.77613645,88381.0,88380.0,8e-07]
[1742841117342,0.77213645,88381.0,88380.0,8e-07]
[1742841117700,1.00942845,88381.0,88380.0,8e-07]
[1742841121672,1.04492996,88381.0,88380.0,8e-07]
[1742841122430,0.70838485,88367.0,88366.0,0.0001698]
[1742841122605,0.82264249,88367.0,88366.0,0.00029312]
[1742841123685,0.82664249,88367.0,88366.0,0.00029312]
[1742841123923,0.84764249,88367.0,88366.0,0.00029312]
[1742841124129,0.88165149,88367.0,88366.0,0.00029312]
[1742841124352,0.99990913,88367.0,88366.0,0.00029312]
[1742841124731,1.04041064,88367.0,88366.0,0.00029312]
[1742841125114,1.00490913,88367.0,88366.0,0.00029312]
[1742841125526,1.04041064,88367.0,88366.0,0.00029312]
[1742841126001,1.00490913,88367.0,88366.0,0.00029312]
[1742841128009,1.42180913,88367.0,88366.0,0.00029312]
[1742841131605,1.44458769,88367.0,88366.0,0.00029312]
[1742841138184,1.41057869,88367.0,88366.0,0.00029312]
[1742841139938,1.41057869,88367.0,88366.0,1.2e-07]
[1742841140144,0.567695,88348.0,88347.0,0.0001698]
[1742841140413,0.82236436,88348.0,88347.0,0.0001698]
[1742841141100,0.8334357,88348.0,88347.0,0.0001698]
[1742841141251,0.8374357,88348.0,88347.0,0.0001698]
[1742841141602,0.8334357,88348.0,88347.0,0.0001698]
[1742841141957,0.8374357,88348.0,88347.0,0.0001698]
[1742841142923,0.8414357,88348.0,88347.0,0.0001698]
[1742841143704,0.79240586,88348.0,88347.0,0.0001698]
[1742841146698,0.81496943,88348.0,88347.0,0.0001698]
[1742841150470,0.73816943,88348.0,88347.0,0.0001698]
[1742841158408,0.76316943,88348.0,88347.0,8e-07]
[1742841158792,0.87742707,88348.0,88347.0,8e-07]
[1742841159505,0.87342707,88348.0,88347.0,8e-07]
[1742841159707,0.86942707,88348.0,88347.0,8e-07]
[1742841159917,0.87442707,88348.0,88347.0,8e-07]
[1742841160113,0.87942707,88348.0,88347.0,8e-07]
[1742841163409,0.31137094,88348.0,88347.0,8e-07]
[1742841164089,0.61137094,88348.0,88347.0,8e-07]
[1742841164708,0.60637094,88348.0,88347.0,8e-07]
[1742841165054,0.60437094,88348.0,88347.0,8e-07]
[1742841165429,0.60628102,88348.0,88347.0,8e-07]
[1742841165608,0.60328102,88348.0,88347.0,8e-07]
[1742841166011,0.60528102,88348.0,88347.0,8e-07]
[1742841166211,0.60728102,88348.0,88347.0,8e-07]
[1742841166421,0.237681,88354.0,88347.0,8e-07]
[1742841166422,0.00847807,88370.0,88362.0,0.1246]
[1742841166687,0.11273212,88363.0,88362.0,0.1630894]
[1742841166837,0.10141612,88363.0,88362.0,0.1246]
[1742841167446,0.10141612,88363.0,88347.0,0.5386408]
[1742841167648,0.10141612,88363.0,88352.0,0.226365]
[1742841167852,0.10141612,88363.0,88351.0,0.226369]
[1742841168079,0.10141612,88363.0,88348.0,0.12856]
[1742841168229,0.10641612,88363.0,88350.0,0.226369]
[1742841168416,0.3,88362.0,88347.0,0.6672008]
[1742841168616,0.002,88348.0,88347.0,0.6672008]
[1742841168867,0.3,88362.0,88347.0,0.6672008]
[1742841169072,0.02229998,88358.0,88351.0,0.002]
[1742841169278,0.02229998,88358.0,88351.0,0.001]
[1742841169470,0.02229998,88358.0,88347.0,0.6672008]
[1742841169675,0.02229998,88358.0,88347.0,0.6682008]
[1742841169938,0.02229998,88358.0,88347.0,0.6702008]
[1742841171163,0.02229998,88358.0,88351.0,0.001]
[1742841171591,0.02229998,88358.0,88347.0,0.6692008]
[1742841171987,0.02229998,88358.0,88347.0,0.6702008]
[1742841172218,0.02229998,88358.0,88347.0,0.6672008]
[1742841172414,0.02229998,88358.0,88351.0,0.002]
[1742841172666,0.02229998,88358.0,88351.0,0.003]
[1742841173028,0.02229998,88358.0,88347.0,0.6672008]
[1742841174229,0.02229998,88358.0,88347.0,0.5386408]
[1742841174433,0.02229998,88358.0,88347.0,0.6702008]
[1742841180081,0.0003396,88363.0,88347.0,0.6702008]
[1742841181166,0.0003396,88363.0,88347.0,0.6672008]
[1742841181375,0.0003396,88363.0,88347.0,0.6682008]
[1742841181571,0.0003396,88363.0,88347.0,0.6692008]
[1742841181772,0.0003396,88363.0,88347.0,0.1305608]
[1742841181973,0.02310161,88359.0,88347.0,0.1305608]
[1742841182802,0.02310161,88359.0,88347.0,0.1295608]
[1742841182956,0.02310161,88359.0,88347.0,0.1285608]
[1742841184208,0.02310161,88359.0,88347.0,0.1315608]
[1742841187400,0.226377,88348.0,88347.0,0.1315608]
[1742841187600,0.237695,88348.0,88347.0,0.1315608]
[1742841188056,0.237695,88348.0,88347.0,0.0030008]
[1742841188264,0.537695,88348.0,88347.0,0.0010008]
[1742841188412,0.607871,88348.0,88347.0,0.0010008]
[1742841188614,0.55223585,88348.0,88347.0,0.0030008]
[1742841188980,0.55223585,88348.0,88347.0,0.0010008]
[1742841189211,0.55223585,88348.0,88347.0,8e-07]
[1742841189449,0.55223585,88348.0,88347.0,0.0010008]
[1742841190860,0.55223585,88348.0,88347.0,0.0020008]
[1742841197874,0.66649349,88348.0,88347.0,0.0020008]
[1742841198112,0.74209349,88348.0,88347.0,0.0020008]
[1742841198462,0.74209349,88348.0,88347.0,0.0010008]
[1742841198683,0.74209349,88348.0,88347.0,8e-07]
[1742841198853,0.76909349,88348.0,88347.0,8e-07]
[1742841199063,0.88335113,88348.0,88347.0,8e-07]
[1742841199472,0.76809349,88348.0,88347.0,8e-07]
[1742841199873,0.77009349,88348.0,88347.0,8e-07]
[1742841200263,0.76909349,88348.0,88347.0,8e-07]
[1742841200464,0.77009349,88348.0,88347.0,8e-07]
[1742841203027,0.537714,88341.0,88340.0,2.323e-05]
[1742841203228,0.66651249,88341.0,88340.0,2.323e-05]
[1742841208540,0.68861305,88341.0,88340.0,2.323e-05]
[1742841213169,0.38861305,88341.0,88340.0,2.323e-05]
[1742841217235,0.39061305,88341.0,88340.0,2.323e-05]
[1742841217637,0.38961305,88341.0,88340.0,2.323e-05]
[1742841218034,0.39061305,88341.0,88340.0,2.323e-05]
[1742841231633,0.47211305,88341.0,88340.0,2.323e-05]
[1742841232820,0.47111305,88341.0,88340.0,2.323e-05]
[1742841232995,0.47611305,88341.0,88340.0,2.323e-05]
[1742841233928,0.47111305,88341.0,88340.0,2.323e-05]
[1742841234380,0.77011305,88341.0,88340.0,2.323e-05]
[1742841234881,0.77311305,88341.0,88340.0,2.323e-05]
[1742841235458,0.77711305,88341.0,88340.0,2.323e-05]
[1742841236471,1.19401305,88341.0,88340.0,2.323e-05]
[1742841238918,1.30827069,88341.0,88340.0,2.323e-05]
[1742841239613,0.025,88333.0,88319.0,0.0001697]
[1742841239788,0.31454085,88331.0,88319.0,0.00021073]
[1742841239972,0.526449,88320.0,88319.0,0.00021073]
[1742841240412,0.537771,88320.0,88319.0,0.00021073]
[1742841241117,0.54737801,88320.0,88319.0,0.00021073]
[1742841242440,0.56191886,88320.0,88319.0,0.00021073]
[1742841242824,0.56191886,88320.0,88319.0,0.00221073]
[1742841246531,0.5851037,88320.0,88319.0,0.00221073]
[1742841246725,0.57056285,88320.0,88319.0,0.00221073]
[1742841249039,0.5851037,88320.0,88319.0,0.00221073]
[1742841249243,0.69936134,88320.0,88319.0,0.00221073]
[1742841249931,0.77696134,88320.0,88319.0,0.00221073]
[1742841250809,0.77696134,88320.0,88319.0,0.00021073]
[1742841253817,0.78096134,88320.0,88319.0,0.00021073]
[1742841254016,1.19386134,88320.0,88319.0,0.00021073]
[1742841254217,1.19786134,88320.0,88319.0,0.00021073]
[1742841254431,1.20086134,88320.0,88319.0,0.00021073]
[1742841254632,1.19686134,88320.0,88319.0,0.00021073]
[1742841254835,1.19986134,88320.0,88319.0,0.00021073]
[1742841258790,0.69157149,88319.0,88318.0,3.5e-07]
[1742841259677,0.69610849,88319.0,88318.0,3.5e-07]
[1742841259885,1.22645259,88319.0,88318.0,3.5e-07]
[1742841260658,1.22845259,88319.0,88318.0,3.5e-07]
[1742841272358,1.08350949,88305.0,88304.0,0.0005792]
[1742841273413,0.537819,88302.0,88301.0,9e-07]
[1742841273616,1.08351749,88302.0,88301.0,9e-07]
[1742841274710,1.08751749,88302.0,88301.0,9e-07]
[1742841274925,1.09051749,88302.0,88301.0,9e-07]
[1742841275128,1.20177513,88302.0,88301.0,9e-07]
[1742841275700,1.19777513,88302.0,88301.0,9e-07]
[1742841275903,1.08351749,88302.0,88301.0,9e-07]
[1742841276500,1.08651749,88302.0,88301.0,9e-07]
[1742841277393,1.09051749,88302.0,88301.0,9e-07]
[1742841278264,0.961719,88302.0,88301.0,9e-07]
[1742841278531,0.961719,88302.0,88301.0,0.0451009]
[1742841279040,0.961719,88302.0,88301.0,9e-07]
[1742841279234,1.07597664,88302.0,88301.0,9e-07]
[1742841279797,1.06897664,88302.0,88301.0,9e-07]
[1742841285489,1.08551749,88302.0,88301.0,9e-07]
[1742841294484,1.08585709,88302.0,88301.0,9e-07]
[1742841302439,1.11585709,88302.0,88301.0,9e-07]
[1742841302869,1.12039609,88302.0,88301.0,9e-07]
[1742841303449,1.11939609,88302.0,88301.0,9e-07]
[1742841303691,1.23365373,88302.0,88301.0,9e-07]